[Event "36th European Club Cup 2021"]
[Site "Struga"]
[Date "2021.09.23"]
[Round "6.29"]
[White "Alekseev, Evgeny"]
[Black "Buzeti, Jernej"]
[Result "1/2-1/2"]
[ECO "B74"]
[WhiteElo "2610"]
[BlackElo "2236"]
[Annotator "ChessBase"]
[PlyCount "83"]
[EventDate "2021.09.18"]
[EventType "team-tourn"]
[EventCountry "MKD"]
[SourceTitle "playchess.com"]
[Source "ChessBase"]
[SourceQuality "1"]
[TimeControl "40/5400+30:1800+30"]

1. e4 {[%emt 0:00:14]} c5 {[%emt 0:00:26]} 2. Nf3 {[%emt 0:00:03]} d6 {[%emt 0:
00:16]} 3. d4 {[%emt 0:00:39]} cxd4 {[%emt 0:00:27]} 4. Nxd4 {[%emt 0:00:35]}
Nf6 {[%emt 0:00:20]} 5. Nc3 {[%emt 0:00:05]} g6 {[%emt 0:01:38]} 6. Be2 {
[%emt 0:07:01]} Bg7 {[%emt 0:00:29]} 7. Nb3 {[%emt 0:06:14]} Nc6 {[%emt 0:01:
40]} 8. Be3 {[%emt 0:01:32]} O-O {[%emt 0:05:45]} 9. O-O {[%emt 0:01:43]} a6 {
[%emt 0:01:06]} 10. a4 {[%emt 0:06:35]} Be6 {[%emt 0:08:13]} 11. f4 {[%emt 0:
08:02]} Na5 {[%emt 0:23:56]} 12. e5 {[%emt 0:10:17]} Ne8 {[%emt 0:08:47]} 13.
Nd4 {[%emt 0:02:01]} Bc4 {[%emt 0:02:26]} 14. Nf3 {[%emt 0:00:21]} Rc8 {
[%emt 0:08:04]} 15. Bf2 {[%emt 0:06:46]} Bxe2 {[%emt 0:07:02]} 16. Qxe2 {
[%emt 0:00:47]} Nc4 {[%emt 0:01:50]} 17. Bd4 {[%emt 0:04:13]} e6 {[%emt 0:02:
48]} 18. b3 {[%emt 0:04:13]} Na5 {[%emt 0:04:49]} 19. Ne4 {[%emt 0:11:28]} Nc6
{[%emt 0:06:03]} 20. Bb2 {[%emt 0:01:34]} Nb4 {[%emt 0:05:04]} 21. c4 {[%emt 0:
01:05]} d5 {[%emt 0:04:12]} 22. Rad1 {[%emt 0:02:27]} Qe7 {[%emt 0:01:12]} 23.
cxd5 {[%emt 0:02:54]} Nxd5 {[%emt 0:00:29]} 24. g3 {[%emt 0:02:53]} Nec7 {
[%emt 0:01:43]} 25. Nd6 {[%emt 0:01:17]} Rb8 {[%emt 0:00:06]} 26. Rc1 {[%emt 0:
01:18]} Rfd8 {[%emt 0:00:37]} 27. Ng5 {[%emt 0:06:34]} Rf8 {[%emt 0:01:29]} 28.
Ba3 {[%emt 0:01:40]} Qd7 {[%emt 0:00:12]} 29. Nge4 {[%emt 0:01:04]} b6 {
[%emt 0:01:40]} 30. Rc2 {[%emt 0:01:12]} b5 {[%emt 0:01:07]} 31. Nc5 {[%emt 0:
01:49]} Qd8 {[%emt 0:00:21]} 32. Rfc1 {[%emt 0:01:28]} h5 {[%emt 0:01:02]} 33.
Qe4 {[%emt 0:03:09]} Qe7 {[%emt 0:00:41]} 34. Kg2 {[%emt 0:01:28]} b4 {[%emt 0:
00:37]} 35. Bb2 {[%emt 0:00:09]} Rfd8 {[%emt 0:00:27]} 36. Ncb7 {[%emt 0:01:17]
} Rf8 {[%emt 0:00:31]} 37. Na5 {[%emt 0:00:45]} Qd7 {[%emt 0:00:36]} 38. Bd4 {
[%emt 0:01:15]} Ra8 {[%emt 0:00:40]} 39. Rc6 {[%emt 0:00:37]} Rfb8 {[%emt 0:00:
22]} 40. Qf3 {[%emt 0:00:00]} Ne8 {[%emt 0:00:00]} 41. Nxe8 {[%emt 0:13:16]}
Qxe8 {[%emt 0:01:26]} 42. R6c2 {[%emt 0:00:24]} 1/2-1/2

[Event "36th European Club Cup 2021"]
[Site "Struga"]
[Date "2021.09.23"]
[Round "6.30"]
[White "Bratkovic, Sham"]
[Black "Kornev, Alexei"]
[Result "0-1"]
[ECO "E51"]
[WhiteElo "2213"]
[BlackElo "2500"]
[Annotator "ChessBase"]
[PlyCount "94"]
[EventDate "2021.09.18"]
[EventType "team-tourn"]
[EventCountry "MKD"]
[SourceTitle "playchess.com"]
[Source "ChessBase"]
[SourceQuality "1"]
[TimeControl "40/5400+30:1800+30"]

1. d4 {[%emt 0:00:32]} Nf6 {[%emt 0:00:16]} 2. c4 {[%emt 0:01:01]} e6 {[%emt 0:
00:20]} 3. Nc3 {[%emt 0:00:47]} Bb4 {[%emt 0:00:08]} 4. e3 {[%emt 0:01:18]} O-O
{[%emt 0:00:18]} 5. Bd3 {[%emt 0:00:58]} d5 {[%emt 0:01:10]} 6. Nf3 {[%emt 0:
00:56]} dxc4 {[%emt 0:02:56]} 7. Bxc4 {[%emt 0:00:15]} b6 {[%emt 0:00:16]} 8.
O-O {[%emt 0:01:47]} Bb7 {[%emt 0:00:07]} 9. Ne5 {[%emt 0:07:25]} c5 {[%emt 0:
03:39]} 10. Ne2 {[%emt 0:05:14]} cxd4 {[%emt 0:08:08]} 11. exd4 {[%emt 0:01:16]
} Nc6 {[%emt 0:02:30]} 12. Nxc6 {[%emt 0:10:44]} Bxc6 {[%emt 0:00:35]} 13. Bg5
{[%emt 0:01:15]} b5 {[%emt 0:03:56]} 14. Bb3 {[%emt 0:04:43]} h6 {[%emt 0:00:
41]} 15. Bh4 {[%emt 0:02:32]} Be7 {[%emt 0:00:33]} 16. Rc1 {[%emt 0:02:32]} Rc8
{[%emt 0:04:44]} 17. Qd3 {[%emt 0:05:27]} Qb6 {[%emt 0:06:00]} 18. Qh3 {
[%emt 0:19:52]} Bb7 {[%emt 0:07:34]} 19. Bg3 {[%emt 0:03:02]} Bd5 {[%emt 0:07:
03]} 20. Be5 {[%emt 0:02:06]} Bc4 {[%emt 0:06:25]} 21. Bxc4 {[%emt 0:01:43]}
bxc4 {[%emt 0:00:19]} 22. b3 {[%emt 0:02:48]} cxb3 {[%emt 0:01:45]} 23. axb3 {
[%emt 0:00:31]} Nd5 {[%emt 0:02:24]} 24. Qg4 {[%emt 0:05:44]} Bf6 {[%emt 0:02:
08]} 25. Qf3 {[%emt 0:02:05]} Bg5 {[%emt 0:02:03]} 26. Rc4 {[%emt 0:05:32]}
Rfd8 {[%emt 0:05:51]} 27. h3 {[%emt 0:01:40]} Qb5 {[%emt 0:01:55]} 28. Ra4 {
[%emt 0:02:10]} a6 {[%emt 0:01:34]} 29. Qe4 {[%emt 0:02:03]} Rc6 {[%emt 0:05:
14]} 30. Rfa1 {[%emt 0:01:53]} Rdc8 {[%emt 0:02:23]} 31. Ra5 {[%emt 0:00:56]}
Qb7 {[%emt 0:01:31]} 32. f4 {[%emt 0:01:47]} Bd8 {[%emt 0:00:52]} 33. Rc5 {
[%emt 0:02:27]} f6 {[%emt 0:01:33]} 34. f5 {[%emt 0:00:57]} fxe5 {[%emt 0:02:
13]} 35. fxe6 {[%emt 0:00:12]} Rxc5 {[%emt 0:00:20]} 36. dxc5 {[%emt 0:00:07]}
Qxb3 {[%emt 0:00:59]} 37. Rxa6 {[%emt 0:00:59]} Qe3+ {[%emt 0:01:54]} 38. Qxe3
{[%emt 0:00:05]} Nxe3 {[%emt 0:00:06]} 39. Nc3 {[%emt 0:01:27]} Kf8 {[%emt 0:
02:48]} 40. Ne4 {[%emt 0:00:00]} Be7 {[%emt 0:00:00]} 41. Nd6 {[%emt 0:03:53]}
Rb8 {[%emt 0:05:31]} 42. Ra3 {[%emt 0:03:33]} Nd5 {[%emt 0:01:01]} 43. Rd3 {
[%emt 0:01:01]} Nc7 {[%emt 0:00:56]} 44. Rf3+ {[%emt 0:01:34]} Kg8 {[%emt 0:01:
33]} 45. Rf7 {[%emt 0:01:06]} Bxd6 {[%emt 0:00:07]} 46. cxd6 {[%emt 0:00:08]}
Nxe6 {[%emt 0:00:06]} 47. Re7 {[%emt 0:00:03]} Nf8 {[%emt 0:00:09]} 0-1

[Event "36th European Club Cup 2021"]
[Site "Struga"]
[Date "2021.09.23"]
[Round "6.31"]
[White "Kjartansson, Gudmundur"]
[Black "Mikhalevski, Victor"]
[Result "1/2-1/2"]
[ECO "A16"]
[WhiteElo "2447"]
[BlackElo "2573"]
[Annotator "ChessBase"]
[PlyCount "80"]
[EventDate "2021.09.18"]
[EventType "team-tourn"]
[EventCountry "MKD"]
[SourceTitle "playchess.com"]
[Source "ChessBase"]
[SourceQuality "1"]
[TimeControl "40/5400+30:1800+30"]

1. Nf3 {[%emt 0:00:11]} Nf6 {[%emt 0:00:41]} 2. c4 {[%emt 0:00:08]} g6 {
[%emt 0:00:23]} 3. Nc3 {[%emt 0:00:19]} d5 {[%emt 0:00:06]} 4. cxd5 {[%emt 0:
00:06]} Nxd5 {[%emt 0:00:04]} 5. h4 {[%emt 0:01:33]} Nxc3 {[%emt 0:00:20]} 6.
bxc3 {[%emt 0:00:21]} c5 {[%emt 0:00:27]} 7. h5 {[%emt 0:01:16]} Bg7 {[%emt 0:
00:06]} 8. d4 {[%emt 0:02:08]} Nc6 {[%emt 0:02:47]} 9. hxg6 {[%emt 0:07:59]}
hxg6 {[%emt 0:00:18]} 10. Rxh8+ {[%emt 0:00:05]} Bxh8 {[%emt 0:00:06]} 11. e3 {
[%emt 0:00:27]} Qa5 {[%emt 0:18:52]} 12. Bd2 {[%emt 0:01:24]} Qc7 {[%emt 0:00:
53]} 13. Bc4 {[%emt 0:02:52]} Na5 {[%emt 0:04:16]} 14. Bb5+ {[%emt 0:11:11]}
Bd7 {[%emt 0:07:23]} 15. Qa4 {[%emt 0:01:15]} Rd8 {[%emt 0:00:12]} 16. Bxd7+ {
[%emt 0:02:35]} Rxd7 {[%emt 0:00:17]} 17. Rb1 {[%emt 0:01:27]} b6 {[%emt 0:02:
05]} 18. c4 {[%emt 0:05:24]} cxd4 {[%emt 0:21:52]} 19. Bxa5 {[%emt 0:01:06]}
bxa5 {[%emt 0:09:01]} 20. exd4 {[%emt 0:01:19]} Kf8 {[%emt 0:00:43]} 21. Rd1 {
[%emt 0:25:09]} Rd8 {[%emt 0:04:07]} 22. Kf1 {[%emt 0:00:38]} Bf6 {[%emt 0:05:
10]} 23. Kg1 {[%emt 0:02:57]} g5 {[%emt 0:00:39]} 24. g3 {[%emt 0:06:25]} g4 {
[%emt 0:00:58]} 25. Ne5 {[%emt 0:00:31]} Bxe5 {[%emt 0:16:29]} 26. dxe5 {
[%emt 0:00:04]} Rxd1+ {[%emt 0:00:38]} 27. Qxd1 {[%emt 0:00:04]} Qxc4 {[%emt 0:
00:36]} 28. Qd8+ {[%emt 0:00:21]} Kg7 {[%emt 0:00:04]} 29. Qxe7 {[%emt 0:00:06]
} Qc1+ {[%emt 0:01:07]} 30. Kh2 {[%emt 0:02:29]} Qh6+ {[%emt 0:00:11]} 31. Kg1
{[%emt 0:01:46]} Qc1+ {[%emt 0:00:32]} 32. Kh2 {[%emt 0:00:03]} Qh6+ {[%emt 0:
00:25]} 33. Kg1 {[%emt 0:00:03]} Qg6 {[%emt 0:02:18]} 34. Qxa7 {[%emt 0:08:50]}
Qb1+ {[%emt 0:00:07]} 35. Kh2 {[%emt 0:00:28]} Qxa2 {[%emt 0:00:20]} 36. e6 {
[%emt 0:00:06]} Qxe6 {[%emt 0:00:20]} 37. Qxa5 {[%emt 0:00:04]} Qh6+ {[%emt 0:
00:09]} 38. Kg1 {[%emt 0:00:12]} Qc1+ {[%emt 0:00:05]} 39. Kh2 {[%emt 0:00:03]}
Qh6+ {[%emt 0:00:03]} 40. Kg1 {[%emt 0:00:00]} Qc1+ {[%emt 0:00:00]} 1/2-1/2

[Event "36th European Club Cup 2021"]
[Site "Struga"]
[Date "2021.09.23"]
[Round "6.33"]
[White "Petursson, Margeir"]
[Black "Roiz, Michael"]
[Result "0-1"]
[ECO "A34"]
[WhiteElo "2442"]
[BlackElo "2580"]
[Annotator "ChessBase"]
[PlyCount "140"]
[EventDate "2021.09.18"]
[EventType "team-tourn"]
[EventCountry "MKD"]
[SourceTitle "playchess.com"]
[Source "ChessBase"]
[SourceQuality "1"]
[TimeControl "40/5400+30:1800+30"]

1. c4 {[%emt 0:00:05]} c5 {[%emt 0:00:28]} 2. Nf3 {[%emt 0:00:11]} Nf6 {
[%emt 0:00:14]} 3. Nc3 {[%emt 0:00:16]} Nc6 {[%emt 0:01:26]} 4. g3 {[%emt 0:00:
30]} d5 {[%emt 0:00:14]} 5. cxd5 {[%emt 0:00:14]} Nxd5 {[%emt 0:00:08]} 6. Bg2
{[%emt 0:00:06]} Nc7 {[%emt 0:00:49]} 7. d3 {[%emt 0:02:58]} e5 {[%emt 0:01:09]
} 8. Nd2 {[%emt 0:05:28]} Be7 {[%emt 0:01:48]} 9. Nc4 {[%emt 0:01:36]} f6 {
[%emt 0:01:27]} 10. a4 {[%emt 0:01:04]} Be6 {[%emt 0:02:13]} 11. a5 {[%emt 0:
11:27]} Qd7 {[%emt 0:05:26]} 12. Qa4 {[%emt 0:08:59]} Rc8 {[%emt 0:13:04]} 13.
O-O {[%emt 0:05:34]} O-O {[%emt 0:00:52]} 14. Bd2 {[%emt 0:01:26]} Rfd8 {
[%emt 0:06:27]} 15. Rfc1 {[%emt 0:03:14]} Na6 {[%emt 0:00:28]} 16. Qb5 {
[%emt 0:08:44]} Rc7 {[%emt 0:04:56]} 17. Be3 {[%emt 0:04:08]} Bf8 {[%emt 0:06:
23]} 18. Qa4 {[%emt 0:05:07]} Rcc8 {[%emt 0:05:51]} 19. Qb5 {[%emt 0:02:07]}
Rc7 {[%emt 0:02:45]} 20. Qa4 {[%emt 0:00:18]} Nab4 {[%emt 0:10:31]} 21. Nd2 {
[%emt 0:07:22]} Rcc8 {[%emt 0:04:13]} 22. Qb5 {[%emt 0:03:30]} Na6 {[%emt 0:04:
50]} 23. Nc4 {[%emt 0:01:16]} Qf7 {[%emt 0:06:46]} 24. Nd2 {[%emt 0:04:27]} Rc7
{[%emt 0:03:21]} 25. Qa4 {[%emt 0:01:55]} Rcc8 {[%emt 0:05:13]} 26. Qb5 {
[%emt 0:01:14]} Rd7 {[%emt 0:03:19]} 27. Qa4 {[%emt 0:07:06]} Nd4 {[%emt 0:03:
17]} 28. Bxd4 {[%emt 0:05:18]} exd4 {[%emt 0:00:05]} 29. Nb5 {[%emt 0:00:54]}
Ra8 {[%emt 0:00:01]} 30. Na3 {[%emt 0:01:56]} Re8 {[%emt 0:02:11]} 31. Re1 {
[%emt 0:01:43]} Bd5 {[%emt 0:01:54]} 32. Bxd5 {[%emt 0:02:00]} Rxd5 {[%emt 0:
00:23]} 33. Qb3 {[%emt 0:01:07]} Nb4 {[%emt 0:00:54]} 34. Nc2 {[%emt 0:01:00]}
Nc6 {[%emt 0:00:52]} 35. Nf3 {[%emt 0:01:40]} g6 {[%emt 0:04:02]} 36. Na3 {
[%emt 0:00:59]} Nxa5 {[%emt 0:00:00]} 37. Qa2 {[%emt 0:00:32]} Rd7 {[%emt 0:00:
00]} 38. Nd2 {[%emt 0:01:03]} Qxa2 {[%emt 0:00:00]} 39. Rxa2 {[%emt 0:00:02]}
Nc6 {[%emt 0:00:00]} 40. Kf1 {[%emt 0:00:00]} Kf7 {[%emt 0:00:00]} 41. Ndc4 {
[%emt 0:01:49]} Nb4 {[%emt 0:05:50]} 42. Raa1 {[%emt 0:01:43]} Re6 {[%emt 0:00:
13]} 43. Nd2 {[%emt 0:03:59]} b6 {[%emt 0:03:57]} 44. h4 {[%emt 0:00:51]} Ke8 {
[%emt 0:03:46]} 45. Nf3 {[%emt 0:04:06]} Bd6 {[%emt 0:01:46]} 46. Rac1 {
[%emt 0:01:02]} Bf8 {[%emt 0:00:33]} 47. Rc4 {[%emt 0:01:43]} Kd8 {[%emt 0:03:
36]} 48. Ra1 {[%emt 0:01:16]} Nc6 {[%emt 0:04:26]} 49. Nb5 {[%emt 0:02:30]} a5
{[%emt 0:02:01]} 50. Rcc1 {[%emt 0:04:49]} Bh6 {[%emt 0:00:47]} 51. Rc4 {
[%emt 0:01:16]} Kc8 {[%emt 0:01:24]} 52. g4 {[%emt 0:00:14]} Bf8 {[%emt 0:01:
24]} 53. g5 {[%emt 0:01:11]} Be7 {[%emt 0:00:44]} 54. gxf6 {[%emt 0:02:04]}
Bxf6 {[%emt 0:00:01]} 55. Rc2 {[%emt 0:00:49]} Rde7 {[%emt 0:02:05]} 56. Na3 {
[%emt 0:01:25]} Kb7 {[%emt 0:00:10]} 57. Nc4 {[%emt 0:00:40]} Nb4 {[%emt 0:01:
01]} 58. Rd2 {[%emt 0:01:06]} Nd5 {[%emt 0:01:11]} 59. Re1 {[%emt 0:01:23]} Re8
{[%emt 0:00:32]} 60. Rdd1 {[%emt 0:01:29]} Bd8 {[%emt 0:02:36]} 61. Ncd2 {
[%emt 0:00:45]} h6 {[%emt 0:00:57]} 62. Rc1 {[%emt 0:01:58]} Rf8 {[%emt 0:00:
59]} 63. Ne4 {[%emt 0:00:18]} Be7 {[%emt 0:00:32]} 64. Kg2 {[%emt 0:01:07]} Kb8
{[%emt 0:00:52]} 65. Kg3 {[%emt 0:01:55]} Bd8 {[%emt 0:00:27]} 66. e3 {[%emt 0:
00:26]} dxe3 {[%emt 0:00:19]} 67. fxe3 {[%emt 0:00:09]} Nb4 {[%emt 0:00:34]}
68. Rcd1 {[%emt 0:00:57]} Nxd3 {[%emt 0:00:27]} 69. Rxd3 {[%emt 0:00:07]} Rxe4
{[%emt 0:00:04]} 70. Red1 {[%emt 0:00:46]} Bc7+ {[%emt 0:00:06]} 0-1

[Event "36th European Club Cup 2021"]
[Site "Struga"]
[Date "2021.09.23"]
[Round "6.34"]
[White "Postny, Evgeny"]
[Black "Johannesson, Ingvar Thor"]
[Result "1-0"]
[ECO "D31"]
[WhiteElo "2564"]
[BlackElo "2346"]
[Annotator "ChessBase"]
[PlyCount "85"]
[EventDate "2021.09.18"]
[EventType "team-tourn"]
[EventCountry "MKD"]
[SourceTitle "playchess.com"]
[Source "ChessBase"]
[SourceQuality "1"]
[TimeControl "40/5400+30:1800+30"]

1. d4 {[%emt 0:00:03]} e6 {[%emt 0:03:39]} 2. c4 {[%emt 0:00:07]} d5 {[%emt 0:
01:45]} 3. Nf3 {[%emt 0:00:10]} a6 {[%emt 0:00:42]} 4. cxd5 {[%emt 0:04:19]}
exd5 {[%emt 0:00:52]} 5. Nc3 {[%emt 0:00:06]} h6 {[%emt 0:04:30]} 6. Bf4 {
[%emt 0:03:32]} Nf6 {[%emt 0:01:19]} 7. e3 {[%emt 0:00:12]} Bd6 {[%emt 0:00:06]
} 8. Bd3 {[%emt 0:03:54]} O-O {[%emt 0:04:54]} 9. Ne5 {[%emt 0:07:37]} Nbd7 {
[%emt 0:15:48]} 10. Bg3 {[%emt 0:02:38]} Qe7 {[%emt 0:21:44]} 11. f4 {[%emt 0:
00:52]} b6 {[%emt 0:02:20]} 12. Qf3 {[%emt 0:06:32]} Bb7 {[%emt 0:00:35]} 13.
Bh4 {[%emt 0:02:24]} Qe8 {[%emt 0:12:44]} 14. O-O {[%emt 0:13:50]} Bb4 {
[%emt 0:08:50]} 15. Rac1 {[%emt 0:04:49]} Bxc3 {[%emt 0:05:04]} 16. Rxc3 {
[%emt 0:00:23]} c5 {[%emt 0:00:16]} 17. Bf5 {[%emt 0:05:30]} Nxe5 {[%emt 0:04:
36]} 18. fxe5 {[%emt 0:11:10]} Ne4 {[%emt 0:00:13]} 19. Bxe4 {[%emt 0:00:18]}
dxe4 {[%emt 0:00:02]} 20. Qg3 {[%emt 0:00:27]} Kh7 {[%emt 0:01:06]} 21. dxc5 {
[%emt 0:01:09]} bxc5 {[%emt 0:00:26]} 22. Rxc5 {[%emt 0:00:07]} Rc8 {[%emt 0:
03:51]} 23. Rxc8 {[%emt 0:03:26]} Qxc8 {[%emt 0:03:38]} 24. Be7 {[%emt 0:06:24]
} Re8 {[%emt 0:00:04]} 25. Bd6 {[%emt 0:02:25]} Qe6 {[%emt 0:00:22]} 26. b3 {
[%emt 0:21:06]} Rc8 {[%emt 0:00:28]} 27. Qf2 {[%emt 0:00:00]} Kg8 {[%emt 0:00:
54]} 28. h3 {[%emt 0:00:00]} Rc3 {[%emt 0:00:20]} 29. Rd1 {[%emt 0:00:00]} Bc6
{[%emt 0:01:59]} 30. Rd4 {[%emt 0:00:00]} Rd3 {[%emt 0:01:44]} 31. Rc4 {
[%emt 0:00:00]} Bb5 {[%emt 0:00:25]} 32. Rc7 {[%emt 0:00:00]} Rd1+ {[%emt 0:00:
28]} 33. Kh2 {[%emt 0:00:00]} Rf1 {[%emt 0:00:12]} 34. Qg3 {[%emt 0:00:00]} Kh7
{[%emt 0:01:00]} 35. Bf8 {[%emt 0:00:00]} Qg6 {[%emt 0:00:10]} 36. Qxg6+ {
[%emt 0:00:00]} Kxg6 {[%emt 0:00:14]} 37. e6 {[%emt 0:00:00]} Rf6 {[%emt 0:01:
08]} 38. e7 {[%emt 0:01:22]} Re6 {[%emt 0:00:01]} 39. g4 {[%emt 0:03:39]} h5 {
[%emt 0:00:59]} 40. gxh5+ {[%emt 0:00:00]} Kxh5 {[%emt 0:00:00]} 41. Bxg7 {
[%emt 0:01:19]} Kg6 {[%emt 0:03:46]} 42. Bd4 {[%emt 0:01:23]} f6 {[%emt 0:01:
34]} 43. Kg3 {[%emt 0:02:16]} 1-0

[Event "36th European Club Cup 2021"]
[Site "Struga"]
[Date "2021.09.23"]
[Round "6.35"]
[White "Mai, Alexander Oliver"]
[Black "Huzman, Alexander"]
[Result "0-1"]
[ECO "B11"]
[WhiteElo "2042"]
[BlackElo "2547"]
[Annotator "ChessBase"]
[PlyCount "70"]
[EventDate "2021.09.18"]
[EventType "team-tourn"]
[EventCountry "MKD"]
[SourceTitle "playchess.com"]
[Source "ChessBase"]
[SourceQuality "1"]
[TimeControl "40/5400+30:1800+30"]

1. e4 {[%emt 0:00:03]} c6 {[%emt 0:00:10]} 2. Nc3 {[%emt 0:00:07]} d5 {[%emt 0:
00:19]} 3. Nf3 {[%emt 0:00:06]} Bg4 {[%emt 0:00:09]} 4. h3 {[%emt 0:00:11]}
Bxf3 {[%emt 0:00:14]} 5. Qxf3 {[%emt 0:00:06]} e6 {[%emt 0:00:04]} 6. d4 {
[%emt 0:00:16]} Nf6 {[%emt 0:01:11]} 7. Be2 {[%emt 0:00:17]} Be7 {[%emt 0:03:
45]} 8. O-O {[%emt 0:21:07]} dxe4 {[%emt 0:03:42]} 9. Qe3 {[%emt 0:00:40]} Nbd7
{[%emt 0:01:28]} 10. Nxe4 {[%emt 0:00:31]} Nxe4 {[%emt 0:00:22]} 11. Qxe4 {
[%emt 0:00:05]} Nf6 {[%emt 0:00:04]} 12. Qd3 {[%emt 0:02:36]} O-O {[%emt 0:00:
38]} 13. Rd1 {[%emt 0:03:35]} Qc7 {[%emt 0:06:33]} 14. c4 {[%emt 0:06:49]} Rfd8
{[%emt 0:11:15]} 15. Be3 {[%emt 0:01:54]} Rd7 {[%emt 0:06:25]} 16. Bf3 {
[%emt 0:04:34]} Rad8 {[%emt 0:12:48]} 17. Qb3 {[%emt 0:03:47]} Qa5 {[%emt 0:06:
09]} 18. Rac1 {[%emt 0:03:22]} h6 {[%emt 0:00:39]} 19. Qc3 {[%emt 0:26:07]} Bb4
{[%emt 0:08:04]} 20. Qc2 {[%emt 0:01:21]} Bd6 {[%emt 0:00:35]} 21. a3 {[%emt 0:
03:56]} Qf5 {[%emt 0:06:21]} 22. Qxf5 {[%emt 0:02:54]} exf5 {[%emt 0:00:07]}
23. d5 {[%emt 0:03:58]} c5 {[%emt 0:00:19]} 24. Re1 {[%emt 0:03:54]} Re7 {
[%emt 0:03:13]} 25. Bd2 {[%emt 0:05:11]} Ne4 {[%emt 0:03:49]} 26. Bxe4 {
[%emt 0:01:38]} fxe4 {[%emt 0:00:08]} 27. f3 {[%emt 0:00:34]} Rde8 {[%emt 0:01:
59]} 28. fxe4 {[%emt 0:00:47]} Rxe4 {[%emt 0:00:44]} 29. Rxe4 {[%emt 0:00:33]}
Rxe4 {[%emt 0:00:05]} 30. Kf2 {[%emt 0:00:14]} h5 {[%emt 0:06:15]} 31. Kf3 {
[%emt 0:03:32]} Rd4 {[%emt 0:01:04]} 32. Be3 {[%emt 0:00:15]} Rd3 {[%emt 0:00:
56]} 33. Ke4 {[%emt 0:00:51]} Rb3 {[%emt 0:00:13]} 34. Rc2 {[%emt 0:00:17]} f5+
{[%emt 0:00:56]} 35. Kf3 {[%emt 0:01:03]} f4 {[%emt 0:00:13]} 0-1

[Event "36th European Club Cup 2021"]
[Site "Struga"]
[Date "2021.09.23"]
[Round "6.36"]
[White "Steinberg, Nitzan"]
[Black "Jonsson, Gauti Pall"]
[Result "1/2-1/2"]
[ECO "B01"]
[WhiteElo "2537"]
[BlackElo "2053"]
[Annotator "ChessBase"]
[PlyCount "87"]
[EventDate "2021.09.18"]
[EventType "team-tourn"]
[EventCountry "MKD"]
[SourceTitle "playchess.com"]
[Source "ChessBase"]
[SourceQuality "1"]
[TimeControl "40/5400+30:1800+30"]

1. e4 {[%emt 0:00:08]} d5 {[%emt 0:01:01]} 2. exd5 {[%emt 0:00:11]} Qxd5 {
[%emt 0:00:10]} 3. Nc3 {[%emt 0:00:10]} Qd8 {[%emt 0:00:35]} 4. d4 {[%emt 0:00:
48]} Nf6 {[%emt 0:02:38]} 5. Nf3 {[%emt 0:00:35]} Bg4 {[%emt 0:01:16]} 6. h3 {
[%emt 0:01:49]} Bxf3 {[%emt 0:00:42]} 7. Qxf3 {[%emt 0:00:08]} c6 {[%emt 0:01:
20]} 8. Be3 {[%emt 0:06:25]} e6 {[%emt 0:03:07]} 9. O-O-O {[%emt 0:04:43]} Bb4
{[%emt 0:02:51]} 10. Ne4 {[%emt 0:15:55]} Nxe4 {[%emt 0:00:34]} 11. Qxe4 {
[%emt 0:00:06]} Qd5 {[%emt 0:00:23]} 12. Qxd5 {[%emt 0:00:22]} cxd5 {[%emt 0:
00:15]} 13. c4 {[%emt 0:00:06]} dxc4 {[%emt 0:06:33]} 14. Bxc4 {[%emt 0:02:30]}
Nd7 {[%emt 0:05:05]} 15. Kb1 {[%emt 0:03:13]} Rc8 {[%emt 0:05:14]} 16. Bb3 {
[%emt 0:02:17]} Ke7 {[%emt 0:12:06]} 17. a3 {[%emt 0:11:59]} Bd6 {[%emt 0:06:
57]} 18. Rhe1 {[%emt 0:00:23]} Rhe8 {[%emt 0:05:11]} 19. d5 {[%emt 0:12:48]} e5
{[%emt 0:02:17]} 20. Bxa7 {[%emt 0:02:50]} b6 {[%emt 0:02:10]} 21. Ba4 {
[%emt 0:00:19]} Ra8 {[%emt 0:05:10]} 22. Bxd7 {[%emt 0:00:10]} Kxd7 {[%emt 0:
00:11]} 23. Bxb6 {[%emt 0:00:05]} Reb8 {[%emt 0:01:38]} 24. Be3 {[%emt 0:00:05]
} Rxa3 {[%emt 0:01:23]} 25. g4 {[%emt 0:06:43]} Rb5 {[%emt 0:05:03]} 26. Re2 {
[%emt 0:02:52]} Raa5 {[%emt 0:03:36]} 27. Red2 {[%emt 0:00:23]} Bb4 {[%emt 0:
02:23]} 28. Rd3 {[%emt 0:00:43]} Kd6 {[%emt 0:02:17]} 29. Rb3 {[%emt 0:04:33]}
f6 {[%emt 0:05:24]} 30. f3 {[%emt 0:05:25]} Bc5 {[%emt 0:06:52]} 31. Bxc5+ {
[%emt 0:02:06]} Rxc5 {[%emt 0:00:44]} 32. Rbd3 {[%emt 0:09:05]} Rxd5 {[%emt 0:
03:01]} 33. b4 {[%emt 0:01:25]} Rxd3 {[%emt 0:01:14]} 34. Rxd3+ {[%emt 0:00:01]
} Rd5 {[%emt 0:00:10]} 35. Kc2 {[%emt 0:00:46]} Rxd3 {[%emt 0:02:40]} 36. Kxd3
{[%emt 0:00:02]} Kd5 {[%emt 0:00:12]} 37. h4 {[%emt 0:01:35]} g6 {[%emt 0:02:
29]} 38. h5 {[%emt 0:02:27]} gxh5 {[%emt 0:02:30]} 39. gxh5 {[%emt 0:00:01]} h6
{[%emt 0:00:43]} 40. Kc3 {[%emt 0:00:00]} f5 {[%emt 0:00:00]} 41. Kd3 {[%emt 0:
03:43]} Kd6 {[%emt 0:02:46]} 42. Kc4 {[%emt 0:03:11]} Kc6 {[%emt 0:00:11]} 43.
b5+ {[%emt 0:02:31]} Kd6 {[%emt 0:00:45]} 44. b6 {[%emt 0:04:49]} 1/2-1/2